[Event "4NCL 2021-22"]
[Site "England"]
[Date "2022.03.27"]
[Round "6.64"]
[White "Agrawal, Shivam"]
[Black "Merriman, James"]
[Result "0-1"]
[ECO "A73"]
[WhiteElo "1726"]
[BlackElo "1861"]
[Annotator "NA"]
[PlyCount "100"]
[EventDate "2021.11.27"]
[EventType "team-tourn"]
[EventCountry "ENG"]
[SourceTitle "playchess.com"]
[Source "ChessBase"]
[SourceQuality "1"]
[TimeControl "40/6000+30:3000+30"]

1. d4 {[%emt 0:00:02]} Nf6 {[%emt 0:01:31]} 2. c4 {[%emt 0:00:12]} e6 {[%emt 0:00:07]} 3. Nf3 {[%emt 0:00:12]} c5 {[%emt 0:00:04]} 4. d5 {[%emt 0:00:11]} d6 {[%emt 0:00:22]} 5. Nc3 {[%emt 0:00:28]} exd5 {[%emt 0:00:03]} 6. cxd5 {[%emt 0:00:37]} g6 {[%emt 0:00:28]} 7. e4 {[%emt 0:02:01]} a6 {[%emt 0:01:17]} 8. a4 {[%emt 0:00:20]} Bg4 {[%emt 0:00:02]} 9. Be2 {[%emt 0:07:52]} Bg7 {[%emt 0:00:21]} 10. O-O {[%emt 0:03:08]} O-O {[%emt 0:01:56]} 11. Re1 {[%emt 0:11:07]} Re8 {[%emt 0:01:13]} 12. h3 {[%emt 0:02:12]} Bxf3 {[%emt 0:00:06]} 13. Bxf3 {[%emt 0:00:14]} Nbd7 {[%emt 0:00:09]} 14. g3 {[%emt 0:01:17]} Rb8 {[%emt 0:01:24]} 15. Bf4 {[%emt 0:06:54]} Ne5 {[%emt 0:02:08]} 16. Bxe5 {[%emt 0:00:44]} Rxe5 {[%emt 0:00:11]} 17. Bg2 {[%emt 0:02:43]} Re7 {[%emt 0:09:44]} 18. Qd3 {[%emt 0:07:54]} Nd7 {[%emt 0:02:42]} 19. a5 {[%emt 0:16:42]} Ne5 {[%emt 0:00:56]} 20. Qb1 {[%emt 0:06:45]} c4 {[%emt 0:08:19]} 21. Rd1 {[%emt 0:06:33]} b5 {[%emt 0:03:45]} 22. axb6 {[%emt 0:05:15]} Qxb6 {[%emt 0:00:25]} 23. Qa2 {[%emt 0:02:08]} Nd3 {[%emt 0:12:07]} 24. Rd2 {[%emt 0:03:02]} Nxb2 {[%emt 0:06:02]} 25. Rc2 {[%emt 0:01:57]} Qb3 {[%emt 0:02:01]} 26. Qb1 {[%emt 0:05:10]} Bxc3 {[%emt 0:01:13]} 27. Rxa6 {[%emt 0:00:13]} Nd3 {[%emt 0:00:55]} 28. Qa2 {[%emt 0:03:14]} Qxa2 {[%emt 0:00:47]} 29. Raxa2 {[%emt 0:00:25]} Nb4 {[%emt 0:00:43]} 30. Rxc3 {[%emt 0:00:14]} Nxa2 {[%emt 0:00:04]} 31. Rxc4 {[%emt 0:00:18]} Nb4 {[%emt 0:00:19]} 32. f4 {[%emt 0:01:01]} f6 {[%emt 0:00:58]} 33. Kf2 {[%emt 0:00:31]} Nd3+ {[%emt 0:00:12]} 34. Ke3 {[%emt 0:00:27]} Nc5 {[%emt 0:00:05]} 35. Kd4 {[%emt 0:00:27]} Rb3 {[%emt 0:00:58]} 36. Rxc5 {[%emt 0:00:54]} dxc5+ {[%emt 0:00:00]} 37. Kxc5 {[%emt 0:00:17]} Rxg3 {[%emt 0:00:00]} 38. Kd6 {[%emt 0:00:10]} Kf8 {[%emt 0:00:00]} 39. e5 {[%emt 0:00:38]} fxe5 {[%emt 0:00:06]} 40. fxe5 {[%emt 0:00:12]} Rxg2 {[%emt 0:00:04]} 41. e6 {[%emt 0:50:16]} Re2 {[%emt 0:50:06]} 42. h4 {[%emt 0:00:15]} Re4 {[%emt 0:00:11]} 43. Kc5 {[%emt 0:00:35]} R7xe6 {[%emt 0:00:05]} 44. dxe6 {[%emt 0:00:50]} Rxe6 {[%emt 0:00:05]} 45. Kd5 {[%emt 0:00:16]} Kf7 {[%emt 0:00:09]} 46. Kd4 {[%emt 0:00:12]} h6 {[%emt 0:00:05]} 47. Kd5 {[%emt 0:00:11]} g5 {[%emt 0:00:04]} 48. h5 {[%emt 0:00:15]} g4 {[%emt 0:00:03]} 49. Kd4 {[%emt 0:00:11]} g3 {[%emt 0:00:04]} 50. Kd5 {[%emt 0:00:13]} g2 {[%emt 0:00:04]} 0-1

[Event "4NCL 2021-22"]
[Site "England"]
[Date "2022.03.27"]
[Round "6.65"]
[White "Modi, Shyam Jagdish"]
[Black "Sarakauskas, Gediminas"]
[Result "0-1"]
[ECO "D23"]
[WhiteElo "2128"]
[BlackElo "2423"]
[Annotator "NA"]
[PlyCount "74"]
[EventDate "2021.11.27"]
[EventType "team-tourn"]
[EventCountry "ENG"]
[SourceTitle "playchess.com"]
[Source "ChessBase"]
[SourceQuality "1"]
[TimeControl "40/6000+30:3000+30"]

1. d4 {[%emt 0:00:05]} d5 {[%emt 0:00:03]} 2. c4 {[%emt 0:00:16]} c6 {[%emt 0:00:04]} 3. Nf3 {[%emt 0:00:57]} Nf6 {[%emt 0:00:05]} 4. Qb3 {[%emt 0:00:19]} dxc4 {[%emt 0:10:53]} 5. Qxc4 {[%emt 0:00:12]} Bf5 {[%emt 0:00:04]} 6. g3 {[%emt 0:00:25]} e6 {[%emt 0:00:05]} 7. Bg2 {[%emt 0:00:33]} Be7 {[%emt 0:00:12]} 8. O-O {[%emt 0:00:42]} O-O {[%emt 0:00:05]} 9. Nc3 {[%emt 0:00:47]} Nbd7 {[%emt 0:02:29]} 10. Re1 {[%emt 0:02:02]} Ne4 {[%emt 0:00:50]} 11. Bf4 {[%emt 0:03:45]} h6 {[%emt 0:17:56]} 12. Qb3 {[%emt 0:07:52]} Qb6 {[%emt 0:00:56]} 13. Nh4 {[%emt 0:17:48]} Bxh4 {[%emt 0:01:07]} (13... Qxd4 $2 14. Nxe4 Bxe4 15. Red1 $18) 14. gxh4 {[%emt 0:06:42]} Nxc3 {[%emt 0:10:07]} 15. bxc3 {[%emt 0:06:22]} e5 {[%emt 0:06:23]} 16. dxe5 {[%emt 0:04:12]} Rfe8 {[%emt 0:02:44]} 17. Be3 {[%emt 0:24:40]} Qxb3 {[%emt 0:09:31]} 18. axb3 {[%emt 0:00:01]} Nxe5 $11 {[%emt 0:01:00]} 19. Bxa7 {[%emt 0:11:46]} Ng6 {[%emt 0:00:14]} 20. Bd4 {[%emt 0:03:07]} Rxa1 {[%emt 0:02:41]} 21. Rxa1 {[%emt 0:00:07]} Rxe2 {[%emt 0:00:07]} 22. h3 {[%emt 0:07:41]} Nxh4 {[%emt 0:02:05]} 23. Ra8+ {[%emt 0:00:35]} Kh7 {[%emt 0:00:02]} 24. Ra7 {[%emt 0:19:09]} Bc8 {[%emt 0:18:10]} 25. Ra8 {[%emt 0:00:00]} Be6 {[%emt 0:00:16]} 26. Rb8 {[%emt 0:00:00]} Re1+ {[%emt 0:02:05]} 27. Kh2 {[%emt 0:00:00]} Nxg2 {[%emt 0:00:11]} 28. Kxg2 {[%emt 0:00:00]} Bxb3 {[%emt 0:01:33]} 29. Kh2 {[%emt 0:00:00]} b5 {[%emt 0:03:03]} 30. Rd8 {[%emt 0:00:00]} Bd5 {[%emt 0:00:12]} 31. Rd6 {[%emt 0:00:00]} g5 {[%emt 0:01:32]} 32. h4 {[%emt 0:00:00]} Rh1+ {[%emt 0:03:47]} 33. Kg3 {[%emt 0:00:00]} Rxh4 {[%emt 0:00:11]} 34. Rf6 {[%emt 0:00:00]} b4 {[%emt 0:00:49]} 35. Be5 {[%emt 0:00:00]} Re4 {[%emt 0:02:01]} 36. f4 {[%emt 0:00:00]} b3 {[%emt 0:01:06]} 37. c4 {[%emt 0:00:00]} gxf4+ {[%emt 0:02:51]} 0-1

[Event "4NCL 2021-22"]
[Site "England"]
[Date "2022.03.27"]
[Round "6.66"]
[White "Wall, Gavin"]
[Black "Williams, Samuel G"]
[Result "1/2-1/2"]
[ECO "C44"]
[WhiteElo "2312"]
[BlackElo "2239"]
[Annotator "ChessBase"]
[PlyCount "31"]
[EventDate "2021.11.27"]
[EventType "team-tourn"]
[EventCountry "ENG"]
[SourceTitle "playchess.com"]
[Source "ChessBase"]
[SourceQuality "1"]
[TimeControl "40/6000+30:3000+30"]

1. e4 {[%emt 0:00:02]} e5 {[%emt 0:02:22]} 2. Nf3 {[%emt 0:00:09]} Nf6 {[%emt 0:00:09]} 3. d3 {[%emt 0:00:57]} Nc6 {[%emt 0:00:36]} 4. Be2 {[%emt 0:00:47]} d5 {[%emt 0:01:08]} 5. exd5 {[%emt 0:00:22]} Nxd5 {[%emt 0:00:34]} 6. O-O {[%emt 0:00:06]} Be6 {[%emt 0:03:41]} 7. Re1 {[%emt 0:02:33]} Qd7 {[%emt 0:05:37]} 8. a3 {[%emt 0:11:29]} a5 {[%emt 0:04:11]} 9. Bf1 {[%emt 0:03:20]} Bd6 {[%emt 0:11:33]} 10. Nbd2 {[%emt 0:05:54]} f6 {[%emt 0:08:30]} 11. Ne4 {[%emt 0:07:41]} Be7 {[%emt 0:08:18]} 12. d4 {[%emt 0:04:20]} exd4 {[%emt 0:16:15]} 13. Nxd4 {[%emt 0:00:17]} Nxd4 {[%emt 0:04:23]} 14. Qxd4 {[%emt 0:00:09]} Qc6 {[%emt 0:03:55]} 15. Bc4 {[%emt 0:07:40]} Rd8 {[%emt 0:01:42]} 16. Bxd5 {[%emt 0:07:12]} 1/2-1/2

[Event "4NCL 2021-22"]
[Site "England"]
[Date "2022.03.27"]
[Round "6.67"]
[White "Birtwistle, Nigel"]
[Black "Delaney, Killian"]
[Result "1/2-1/2"]
[ECO "B11"]
[WhiteElo "2110"]
[BlackElo "2292"]
[Annotator "NA"]
[PlyCount "92"]
[EventDate "2021.11.27"]
[EventType "team-tourn"]
[EventCountry "ENG"]
[SourceTitle "playchess.com"]
[Source "ChessBase"]
[SourceQuality "1"]
[TimeControl "40/6000+30:3000+30"]

1. e4 {[%emt 0:00:03]} c6 {[%emt 0:00:11]} 2. Nf3 {[%emt 0:00:29]} d5 {[%emt 0:00:09]} 3. Nc3 {[%emt 0:00:32]} dxe4 {[%emt 0:00:13]} 4. Nxe4 {[%emt 0:00:14]} Nf6 {[%emt 0:00:06]} 5. Qe2 {[%emt 0:00:33]} Nxe4 {[%emt 0:00:10]} 6. Qxe4 {[%emt 0:00:08]} Nd7 {[%emt 0:00:08]} 7. Bc4 {[%emt 0:02:06]} Nf6 {[%emt 0:00:11]} 8. Ne5 {[%emt 0:02:07]} e6 {[%emt 0:00:07]} 9. Qe2 {[%emt 0:01:38]} b5 {[%emt 0:00:13]} 10. Bd3 {[%emt 0:02:24]} Qd5 {[%emt 0:09:13]} 11. O-O {[%emt 0:18:31]} Bd6 {[%emt 0:01:28]} 12. f4 {[%emt 0:20:31]} O-O {[%emt 0:20:35]} 13. Kh1 {[%emt 0:04:35]} Bb7 {[%emt 0:07:15]} 14. b3 {[%emt 0:04:18]} Bc5 {[%emt 0:13:53]} 15. Rb1 {[%emt 0:05:36]} a6 {[%emt 0:01:22]} 16. Bb2 {[%emt 0:11:23]} Bd4 {[%emt 0:04:10]} 17. Ba3 {[%emt 0:03:56]} Bc5 {[%emt 0:01:19]} 18. Bb2 {[%emt 0:00:13]} Rad8 {[%emt 0:06:37]} 19. Rbd1 {[%emt 0:02:09]} Bd4 {[%emt 0:02:11]} 20. Ba3 {[%emt 0:02:15]} Rfe8 {[%emt 0:03:08]} 21. Bb4 {[%emt 0:07:37]} Bc5 {[%emt 0:23:32]} 22. Ba5 {[%emt 0:00:33]} Ra8 {[%emt 0:00:19]} 23. Bc3 {[%emt 0:00:48]} Bd4 {[%emt 0:00:42]} 24. Nf3 {[%emt 0:04:33]} Bxc3 {[%emt 0:00:30]} 25. dxc3 {[%emt 0:00:07]} Qh5 {[%emt 0:01:28]} 26. c4 {[%emt 0:02:29]} b4 {[%emt 0:00:25]} 27. Qe5 {[%emt 0:00:57]} c5 {[%emt 0:01:15]} 28. Qxh5 {[%emt 0:00:56]} Nxh5 {[%emt 0:00:03]} 29. Ne5 {[%emt 0:00:27]} Rad8 {[%emt 0:01:19]} 30. Be2 {[%emt 0:01:13]} Rxd1 {[%emt 0:02:37]} 31. Bxd1 {[%emt 0:00:15]} Nf6 {[%emt 0:00:10]} 32. Nd3 {[%emt 0:00:43]} Rc8 {[%emt 0:00:22]} 33. Bf3 {[%emt 0:01:16]} Bxf3 {[%emt 0:00:57]} 34. Rxf3 {[%emt 0:00:37]} Ne4 {[%emt 0:00:42]} 35. Re3 {[%emt 0:01:11]} f5 {[%emt 0:00:13]} 36. Re1 {[%emt 0:01:11]} Kf7 {[%emt 0:01:04]} 37. Ra1 {[%emt 0:01:21]} Kf6 {[%emt 0:06:12]} 38. a3 {[%emt 0:01:43]} bxa3 {[%emt 0:00:25]} 39. Rxa3 {[%emt 0:00:32]} Rc6 {[%emt 0:00:05]} 40. g3 {[%emt 0:01:06]} g5 {[%emt 0:00:32]} 41. Kg2 {[%emt 0:51:07]} g4 {[%emt 0:50:42]} 42. Ra5 {[%emt 0:04:41]} h5 {[%emt 0:00:45]} 43. Ne5 {[%emt 0:01:41]} Rd6 {[%emt 0:00:13]} 44. Nd3 {[%emt 0:00:08]} Rc6 {[%emt 0:00:23]} 45. Ne5 {[%emt 0:00:27]} Rd6 {[%emt 0:00:18]} 46. Nd3 {[%emt 0:00:11]} Rc6 {[%emt 0:00:32]} 1/2-1/2

[Event "4NCL 2021-22"]
[Site "England"]
[Date "2022.03.27"]
[Round "6.68"]
[White "Murray, David"]
[Black "Varnam, Liam D"]
[Result "0-1"]
[ECO "B31"]
[WhiteElo "2108"]
[BlackElo "2207"]
[Annotator "ChessBase"]
[PlyCount "58"]
[EventDate "2021.11.27"]
[EventType "team-tourn"]
[EventCountry "ENG"]
[SourceTitle "playchess.com"]
[Source "ChessBase"]
[SourceQuality "1"]
[TimeControl "40/6000+30:3000+30"]

1. e4 {[%emt 0:00:03]} c5 {[%emt 0:20:59]} 2. Nf3 {[%emt 0:00:14]} Nc6 {[%emt 0:00:13]} 3. Bb5 {[%emt 0:01:11]} g6 {[%emt 0:00:35]} 4. O-O {[%emt 0:01:12]} Bg7 {[%emt 0:00:12]} 5. Bxc6 {[%emt 0:02:03]} dxc6 {[%emt 0:00:14]} 6. h3 {[%emt 0:00:47]} e5 {[%emt 0:04:11]} 7. d3 {[%emt 0:01:22]} Ne7 {[%emt 0:00:49]} 8. Be3 {[%emt 0:02:03]} b6 {[%emt 0:00:39]} 9. a4 {[%emt 0:02:51]} a5 {[%emt 0:01:34]} 10. Nbd2 {[%emt 0:02:18]} O-O {[%emt 0:05:29]} 11. Nc4 {[%emt 0:02:02]} f6 {[%emt 0:01:16]} 12. Nh2 {[%emt 0:03:51]} f5 {[%emt 0:24:35]} 13. Nf3 {[%emt 0:04:58]} Qc7 {[%emt 0:00:40]} 14. Bd2 {[%emt 0:04:17]} Be6 {[%emt 0:08:47]} 15. b3 {[%emt 0:05:16]} fxe4 {[%emt 0:03:39]} 16. Ng5 {[%emt 0:05:04]} Bxc4 {[%emt 0:02:33]} 17. bxc4 {[%emt 0:07:13]} exd3 {[%emt 0:22:28]} 18. Ne6 {[%emt 0:01:03]} Qd6 {[%emt 0:00:30]} 19. Nxf8 {[%emt 0:00:30]} Rxf8 {[%emt 0:00:30]} 20. Bg5 {[%emt 0:00:30]} e4 {[%emt 0:00:30]} 21. Ra3 {[%emt 0:00:30]} h6 {[%emt 0:00:30]} 22. Bxe7 {[%emt 0:00:30]} Qxe7 {[%emt 0:00:30]} 23. cxd3 {[%emt 0:00:30]} e3 {[%emt 0:00:30]} 24. Qe2 {[%emt 0:00:30]} Bd4 {[%emt 0:00:30]} 25. fxe3 {[%emt 0:00:30]} Qxe3+ {[%emt 0:00:30]} 26. Qxe3 {[%emt 0:00:30]} Bxe3+ {[%emt 0:00:30]} 27. Kh2 {[%emt 0:00:30]} Rxf1 {[%emt 0:00:30]} 28. Rb3 {[%emt 0:00:30]} Bf4+ {[%emt 0:00:30]} 29. g3 {[%emt 0:00:30]} Bc7 {[%emt 0:00:30]} 0-1

[Event "4NCL 2021-22"]
[Site "England"]
[Date "2022.03.27"]
[Round "6.69"]
[White "Head, Louise"]
[Black "Freeman, Gordon"]
[Result "0-1"]
[ECO "D16"]
[WhiteElo "2033"]
[BlackElo "2092"]
[Annotator "NA"]
[PlyCount "112"]
[EventDate "2021.11.27"]
[EventType "team-tourn"]
[EventCountry "ENG"]
[SourceTitle "playchess.com"]
[Source "ChessBase"]
[SourceQuality "1"]
[TimeControl "40/6000+30:3000+30"]

1. d4 {[%emt 0:00:03]} d5 {[%emt 0:00:08]} 2. c4 {[%emt 0:00:03]} c6 {[%emt 0:00:03]} 3. Nf3 {[%emt 0:00:07]} Nf6 {[%emt 0:00:07]} 4. Nc3 {[%emt 0:00:24]} dxc4 {[%emt 0:00:15]} 5. a4 $11 {[%emt 0:00:25]} a5 {[%emt 0:00:10]} 6. e3 {[%emt 0:08:42]} Bg4 {[%emt 0:00:25]} 7. Bxc4 {[%emt 0:00:55]} e6 {[%emt 0:00:17]} 8. O-O {[%emt 0:03:59]} Bb4 {[%emt 0:00:12]} 9. h3 {[%emt 0:05:17]} Bh5 {[%emt 0:04:50]} 10. Be2 {[%emt 0:06:22]} Nbd7 {[%emt 0:03:43]} 11. Qc2 {[%emt 0:08:26]} Qe7 {[%emt 0:09:47]} 12. Rd1 {[%emt 0:04:13]} O-O {[%emt 0:06:12]} 13. Ne5 {[%emt 0:08:20]} Bxe2 {[%emt 0:01:49]} 14. Nxe2 {[%emt 0:00:53]} Nxe5 {[%emt 0:04:20]} 15. dxe5 {[%emt 0:00:08]} Nd7 {[%emt 0:01:12]} 16. f4 {[%emt 0:00:30]} Qc5 {[%emt 0:06:21]} 17. Qe4 {[%emt 0:06:47]} Rad8 {[%emt 0:03:58]} 18. Nd4 {[%emt 0:04:22]} Qc4 {[%emt 0:04:33]} 19. b3 {[%emt 0:05:01]} Qa6 {[%emt 0:25:15]} 20. Qc2 {[%emt 0:04:11]} Nb6 {[%emt 0:03:46]} 21. Rd3 {[%emt 0:12:52]} Nd5 {[%emt 0:05:35]} 22. Bb2 {[%emt 0:07:57]} Bc5 {[%emt 0:14:32]} 23. Rd2 {[%emt 0:09:08]} Qb6 {[%emt 0:05:57]} 24. Qe4 {[%emt 0:01:59]} Bxd4 {[%emt 0:04:40]} 25. exd4 {[%emt 0:03:41]} Qxb3 {[%emt 0:00:17]} 26. Ra3 {[%emt 0:03:54]} Qb4 {[%emt 0:00:09]} 27. Rf2 {[%emt 0:01:49]} c5 {[%emt 0:01:07]} 28. Rg3 {[%emt 0:00:43]} Ne7 {[%emt 0:01:34]} 29. Ba3 {[%emt 0:00:25]} Rxd4 {[%emt 0:01:47]} 30. Bxb4 {[%emt 0:00:18]} Rxe4 {[%emt 0:00:05]} 31. Bxc5 {[%emt 0:00:15]} Re8 {[%emt 0:00:37]} 32. Ra3 {[%emt 0:01:09]} Nd5 {[%emt 0:00:27]} 33. g3 {[%emt 0:00:16]} Rc8 {[%emt 0:00:46]} 34. Bd6 {[%emt 0:00:53]} Rcc4 {[%emt 0:00:31]} 35. Rfa2 {[%emt 0:00:27]} h5 {[%emt 0:00:28]} 36. Kg2 {[%emt 0:00:34]} h4 {[%emt 0:00:28]} 37. f5 {[%emt 0:00:26]} exf5 {[%emt 0:00:25]} 38. gxh4 {[%emt 0:00:37]} Rxh4 {[%emt 0:00:18]} 39. Rb3 {[%emt 0:00:48]} Nf4+ {[%emt 0:00:53]} 40. Kh2 {[%emt 0:00:15]} b6 {[%emt 0:01:03]} 41. Be7 {[%emt 0:09:16]} Rh6 {[%emt 0:07:01]} 42. Bd8 {[%emt 0:01:09]} Re6 {[%emt 0:20:47]} 43. Bxb6 {[%emt 0:07:49]} Rxe5 {[%emt 0:02:24]} 44. Re3 {[%emt 0:14:07]} Rxe3 {[%emt 0:08:02]} 45. Bxe3 {[%emt 0:00:04]} Nd5 {[%emt 0:00:46]} 46. Bd2 {[%emt 0:00:31]} Nb4 {[%emt 0:01:15]} 47. Rb2 {[%emt 0:00:51]} Nc6 {[%emt 0:00:27]} 48. Ra2 {[%emt 0:00:49]} f6 {[%emt 0:03:30]} 49. Kg3 {[%emt 0:00:47]} Kf7 {[%emt 0:01:00]} 50. Kf2 {[%emt 0:02:01]} g5 {[%emt 0:01:31]} 51. Ra3 {[%emt 0:01:45]} Kg6 {[%emt 0:02:59]} 52. Ke2 {[%emt 0:01:22]} f4 {[%emt 0:03:24]} 53. Kd3 {[%emt 0:00:27]} Ne5+ {[%emt 0:00:56]} 54. Ke2 {[%emt 0:00:04]} Rc2 {[%emt 0:01:03]} 55. Rc3 {[%emt 0:00:35]} f3+ {[%emt 0:01:09]} 56. Ke1 {[%emt 0:01:31]} f2+ {[%emt 0:00:28]} 0-1

[Event "4NCL 2021-22"]
[Site "England"]
[Date "2022.03.27"]
[Round "6.70"]
[White "Carroll, Peter"]
[Black "Milson, Samuel A"]
[Result "1/2-1/2"]
[ECO "C10"]
[WhiteElo "2122"]
[BlackElo "2145"]
[Annotator "NA"]
[PlyCount "84"]
[EventDate "2021.11.27"]
[EventType "team-tourn"]
[EventCountry "ENG"]
[SourceTitle "playchess.com"]
[Source "ChessBase"]
[SourceQuality "1"]
[TimeControl "40/6000+30:3000+30"]

1. e4 {[%emt 0:00:33]} e6 {[%emt 0:00:12]} 2. d4 {[%emt 0:00:04]} d5 {[%emt 0:00:11]} 3. Nc3 {[%emt 0:00:05]} dxe4 {[%emt 0:00:20]} 4. Nxe4 {[%emt 0:00:05]} Nd7 {[%emt 0:00:16]} 5. Nf3 {[%emt 0:00:06]} Ngf6 {[%emt 0:00:14]} 6. Bd3 {[%emt 0:00:08]} Be7 {[%emt 0:01:22]} 7. O-O {[%emt 0:00:07]} O-O {[%emt 0:01:54]} 8. c3 {[%emt 0:02:59]} c5 {[%emt 0:13:45]} 9. Re1 {[%emt 0:01:32]} cxd4 {[%emt 0:04:48]} 10. cxd4 {[%emt 0:03:24]} Nb6 {[%emt 0:03:41]} 11. Ne5 {[%emt 0:03:16]} Nbd5 {[%emt 0:04:57]} 12. a3 {[%emt 0:04:06]} Qb6 {[%emt 0:04:52]} 13. g4 {[%emt 0:07:20]} Nxe4 {[%emt 0:34:51]} 14. Bxe4 {[%emt 0:09:00]} f6 {[%emt 0:01:44]} 15. g5 {[%emt 0:05:39]} f5 {[%emt 0:03:25]} 16. Bg2 {[%emt 0:03:42]} Rd8 {[%emt 0:03:17]} 17. Qh5 {[%emt 0:04:58]} g6 {[%emt 0:11:26]} 18. Nxg6 {[%emt 0:03:37]} hxg6 {[%emt 0:00:18]} 19. Qxg6+ {[%emt 0:00:07]} Kf8 {[%emt 0:00:25]} 20. Qh7 {[%emt 0:03:29]} Qc7 {[%emt 0:09:22]} 21. g6 {[%emt 0:06:17]} Bf6 {[%emt 0:00:24]} 22. Bh6+ {[%emt 0:00:16]} Ke8 {[%emt 0:00:40]} 23. Qg8+ {[%emt 0:02:59]} Ke7 {[%emt 0:00:48]} 24. Qf7+ {[%emt 0:00:12]} Kd6 {[%emt 0:00:15]} 25. Bxd5 {[%emt 0:02:19]} Qxf7 {[%emt 0:00:27]} 26. gxf7 {[%emt 0:00:02]} Kxd5 {[%emt 0:00:29]} 27. f8=Q {[%emt 0:00:08]} Rxf8 {[%emt 0:00:05]} 28. Bxf8 {[%emt 0:00:06]} Bd7 {[%emt 0:00:30]} 29. Bh6 {[%emt 0:03:12]} Rg8+ {[%emt 0:01:20]} 30. Kh1 {[%emt 0:00:33]} Bc6 {[%emt 0:00:34]} 31. f3 {[%emt 0:01:15]} Bxd4 {[%emt 0:01:09]} 32. Rad1 {[%emt 0:03:45]} Kc5 {[%emt 0:02:04]} 33. Rd3 {[%emt 0:00:35]} e5 {[%emt 0:00:38]} 34. Rc1+ {[%emt 0:00:53]} Kd6 {[%emt 0:00:43]} 35. h4 {[%emt 0:00:53]} Rg3 {[%emt 0:01:58]} 36. Kh2 {[%emt 0:00:26]} Rg6 {[%emt 0:01:18]} 37. Bg5 {[%emt 0:00:19]} Ke6 {[%emt 0:00:11]} 38. Rc2 {[%emt 0:00:43]} Bb6 {[%emt 0:00:51]} 39. Rcd2 {[%emt 0:03:03]} Bc7 {[%emt 0:00:17]} 40. f4 {[%emt 0:00:15]} exf4 {[%emt 0:01:26]} 41. Kg1 {[%emt 0:55:19]} Bb6+ {[%emt 0:52:47]} 42. Kh2 {[%emt 0:00:08]} Bc7 {[%emt 0:00:06]} 1/2-1/2

[Event "4NCL 2021-22"]
[Site "England"]
[Date "2022.03.27"]
[Round "6.71"]
[White "Lentzos, Ioanis"]
[Black "Casey, Eoghan"]
[Result "1-0"]
[ECO "E92"]
[WhiteElo "2104"]
[BlackElo "1902"]
[Annotator "NA"]
[PlyCount "63"]
[EventDate "2021.11.27"]
[EventType "team-tourn"]
[EventCountry "ENG"]
[SourceTitle "playchess.com"]
[Source "ChessBase"]
[SourceQuality "1"]
[TimeControl "40/6000+30:3000+30"]

1. d4 {[%emt 0:00:07]} g6 {[%emt 0:02:18]} 2. c4 {[%emt 0:00:17]} Bg7 {[%emt 0:00:05]} 3. e4 {[%emt 0:00:11]} Nf6 {[%emt 0:01:41]} 4. Nc3 {[%emt 0:00:12]} O-O {[%emt 0:00:07]} 5. Nf3 {[%emt 0:00:20]} d6 {[%emt 0:00:36]} 6. Be2 {[%emt 0:00:20]} e5 {[%emt 0:00:18]} 7. Be3 {[%emt 0:00:48]} Nc6 {[%emt 0:02:54]} 8. d5 {[%emt 0:00:20]} Ne7 {[%emt 0:00:10]} 9. Nd2 {[%emt 0:00:08]} Ne8 {[%emt 0:01:12]} 10. c5 {[%emt 0:03:49]} f5 {[%emt 0:07:04]} 11. f3 {[%emt 0:00:16]} fxe4 {[%emt 0:01:20]} 12. fxe4 {[%emt 0:04:47]} c6 {[%emt 0:11:07]} 13. Nc4 {[%emt 0:16:15]} cxd5 {[%emt 0:10:46]} 14. Nxd5 {[%emt 0:01:06]} Nc6 {[%emt 0:25:46]} 15. h4 {[%emt 0:20:06]} Nd4 {[%emt 0:05:02]} 16. Bg5 {[%emt 0:10:01]} Qd7 {[%emt 0:03:24]} 17. Nxd6 {[%emt 0:06:24]} Nxd6 {[%emt 0:03:43]} 18. cxd6 {[%emt 0:00:06]} Qxd6 {[%emt 0:10:02]} 19. Be7 {[%emt 0:01:30]} Qd7 {[%emt 0:06:53]} 20. Bxf8 {[%emt 0:00:19]} Kxf8 {[%emt 0:00:28]} 21. O-O+ {[%emt 0:02:19]} Kg8 {[%emt 0:00:16]} 22. Rc1 {[%emt 0:00:39]} Qd8 {[%emt 0:03:13]} 23. Bg4 {[%emt 0:02:58]} Be6 {[%emt 0:10:32]} 24. Bxe6+ {[%emt 0:02:08]} Nxe6 {[%emt 0:00:25]} 25. Qg4 {[%emt 0:01:51]} Qd6 {[%emt 0:01:42]} 26. h5 {[%emt 0:06:57]} g5 {[%emt 0:01:47]} 27. h6 {[%emt 0:01:29]} Bf8 {[%emt 0:00:36]} 28. Qf5 {[%emt 0:02:13]} Bxh6 {[%emt 0:00:24]} 29. Qf7+ {[%emt 0:00:24]} Kh8 {[%emt 0:00:03]} 30. Rf6 {[%emt 0:00:30]} Rf8 {[%emt 0:01:02]} 31. Qxe6 {[%emt 0:00:20]} Qxe6 {[%emt 0:00:31]} 32. Rxe6 {[%emt 0:00:10]} 1-0

[Event "4NCL 2021-22"]
[Site "England"]
[Date "2022.03.27"]
[Round "6.72"]
[White "Crowley, James"]
[Black "Dunn, Maxim"]
[Result "1-0"]
[ECO "B90"]
[WhiteElo "1475"]
[BlackElo "1742"]
[Annotator "NA"]
[PlyCount "87"]
[EventDate "2021.11.27"]
[EventType "team-tourn"]
[EventCountry "ENG"]
[SourceTitle "playchess.com"]
[Source "ChessBase"]
[SourceQuality "1"]
[TimeControl "40/6000+30:3000+30"]

1. e4 {[%emt 0:00:03]} c5 {[%emt 0:00:05]} 2. Nf3 {[%emt 0:00:06]} d6 {[%emt 0:00:04]} 3. d4 {[%emt 0:00:06]} cxd4 {[%emt 0:00:03]} 4. Nxd4 {[%emt 0:00:04]} Nf6 {[%emt 0:00:07]} 5. Nc3 {[%emt 0:00:04]} a6 {[%emt 0:00:04]} 6. Be3 {[%emt 0:00:08]} e5 {[%emt 0:00:06]} 7. Nb3 {[%emt 0:00:05]} Be7 {[%emt 0:00:04]} 8. f3 {[%emt 0:00:09]} Be6 {[%emt 0:00:04]} 9. Qd2 {[%emt 0:00:05]} h5 {[%emt 0:00:06]} 10. Be2 {[%emt 0:10:51]} Nbd7 {[%emt 0:00:19]} 11. O-O {[%emt 0:00:57]} Rc8 {[%emt 0:02:58]} 12. Kh1 {[%emt 0:14:31]} O-O {[%emt 0:04:40]} 13. f4 {[%emt 0:03:22]} exf4 {[%emt 0:01:42]} 14. Bxf4 {[%emt 0:01:10]} Ne5 {[%emt 0:00:51]} 15. Rad1 {[%emt 0:05:32]} Qc7 {[%emt 0:10:43]} 16. Nd4 {[%emt 0:04:29]} Nc4 {[%emt 0:05:34]} 17. Nxe6 {[%emt 0:09:23]} fxe6 {[%emt 0:09:52]} 18. Bxc4 {[%emt 0:02:02]} Qxc4 {[%emt 0:00:06]} 19. Qd3 {[%emt 0:12:21]} Rfd8 {[%emt 0:20:50]} 20. Bg5 {[%emt 0:16:13]} b5 {[%emt 0:04:11]} 21. Qh3 {[%emt 0:18:19]} Rf8 {[%emt 0:22:57]} 22. Rf3 {[%emt 0:03:28]} b4 {[%emt 0:03:23]} 23. b3 {[%emt 0:00:28]} Qc5 {[%emt 0:03:31]} 24. Qxe6+ {[%emt 0:00:14]} Kh7 {[%emt 0:06:05]} 25. Bxf6 {[%emt 0:03:13]} Bxf6 {[%emt 0:06:07]} 26. Rd5 {[%emt 0:04:47]} Rce8 {[%emt 0:00:37]} 27. Qh3 {[%emt 0:07:19]} Qc8 {[%emt 0:06:51]} 28. Rxh5+ {[%emt 0:00:00]} Kg8 {[%emt 0:00:01]} 29. Rh8+ {[%emt 0:00:00]} Kf7 {[%emt 0:00:02]} 30. Qh5+ {[%emt 0:00:00]} Ke7 {[%emt 0:00:25]} 31. Nd5+ {[%emt 0:00:00]} Kd8 {[%emt 0:00:23]} 32. Rxf8 {[%emt 0:00:00]} Rxf8 {[%emt 0:00:09]} 33. Nxf6 {[%emt 0:00:00]} Qxc2 {[%emt 0:00:43]} 34. Qa5+ {[%emt 0:00:00]} Ke7 {[%emt 0:02:22]} 35. Nd5+ {[%emt 0:00:00]} Ke6 {[%emt 0:00:15]} 36. h4 {[%emt 0:00:00]} Rxf3 {[%emt 0:00:29]} 37. gxf3 {[%emt 0:00:00]} Qd1+ {[%emt 0:00:19]} 38. Kg2 {[%emt 0:00:00]} Qe2+ {[%emt 0:00:08]} 39. Kg3 {[%emt 0:00:00]} Qe1+ {[%emt 0:00:17]} 40. Kg4 {[%emt 0:00:09]} Qg1+ {[%emt 0:01:37]} 41. Kh5 {[%emt 0:50:03]} g6+ {[%emt 0:50:53]} 42. Kh6 {[%emt 0:00:02]} Qc1+ {[%emt 0:00:00]} 43. Kh7 {[%emt 0:00:00]} g5 {[%emt 0:00:00]} 44. Qd8 {[%emt 0:00:00]} 1-0